{"text_format":"3","workbook":"xlsx","n_sheets":1,"sheets":["Kalkulace"],"not_rendered":{"images":1,"defined_names":20},"read":"whole","date_system":"1900"}

{"sheet":"Kalkulace","index":0,"n_rows":39,"n_cols":7,"rows_kept":39,"merged":[[0,1,3,1],[0,3,0,6],[1,4,1,6],[2,4,2,6],[32,3,35,4],[36,3,36,6],[37,3,37,5],[38,3,38,5]]}
[{"$nulls":3},"KALKULACE KONSTRUKCE"]
[{"$nulls":3},"Název společnosti","| Do této buňky zadejte ulici a číslo domu společnosti."]
[{"$nulls":3},"Telefon","| Do této buňky zadejte telefonní číslo a kontaktní e-mailovou adresu společnosti."]
[{"$nulls":3},"MNOŽSTVÍ","POPIS","JEDN. CENA","ČÁSTKA"]
[null,"ZÁKAZNÍK",null,10,"Položka 1",{"v":165,"d":"165.00 Kč"},{"$f":"IFERROR(Položky[[#This Row],[MNOŽSTVÍ]]*Položky[[#This Row],[JEDN. CENA]], \"\")","v":{"v":1650,"d":"1,650.00 Kč"}}]
[null,"Do této buňky zadejte jméno zákazníka.",null,21,"Položka 2",{"v":40,"d":"40.00 Kč"},{"$f":"IFERROR(Položky[[#This Row],[MNOŽSTVÍ]]*Položky[[#This Row],[JEDN. CENA]], \"\")","v":{"v":840,"d":"840.00 Kč"}}]
[null,"Č. KALKULACE",null,5,"Položka 3",{"v":10.5,"d":"10.50 Kč"},{"$f":"IFERROR(Položky[[#This Row],[MNOŽSTVÍ]]*Položky[[#This Row],[JEDN. CENA]], \"\")","v":{"v":52.5,"d":"52.50 Kč"}}]
[null,"C-1234",null,164,"Položka 4",{"v":2.75,"d":"2.75 Kč"},{"$f":"IFERROR(Položky[[#This Row],[MNOŽSTVÍ]]*Položky[[#This Row],[JEDN. CENA]], \"\")","v":{"v":451,"d":"451.00 Kč"}}]
[null,"DATUM",null,6,"Položka 5",{"v":12,"d":"12.00 Kč"},{"$f":"IFERROR(Položky[[#This Row],[MNOŽSTVÍ]]*Položky[[#This Row],[JEDN. CENA]], \"\")","v":{"v":72,"d":"72.00 Kč"}}]
[null,{"$f":"TODAY()","v":"2018-11-14"},null,18,"Položka 6",{"v":5.5,"d":"5.50 Kč"},{"$f":"IFERROR(Položky[[#This Row],[MNOŽSTVÍ]]*Položky[[#This Row],[JEDN. CENA]], \"\")","v":{"v":99,"d":"99.00 Kč"}}]
[null,"ADRESA",null,1,"Položka 7",{"v":25,"d":"25.00 Kč"},{"$f":"IFERROR(Položky[[#This Row],[MNOŽSTVÍ]]*Položky[[#This Row],[JEDN. CENA]], \"\")","v":{"v":25,"d":"25.00 Kč"}}]
[null,"Do této buňky zadejte ulici a číslo domu zákazníka.",{"$nulls":4},{"$f":"IFERROR(Položky[[#This Row],[MNOŽSTVÍ]]*Položky[[#This Row],[JEDN. CENA]], \"\")","v":{"v":0,"d":"0.00 Kč"}}]
[null,"PSČ A MĚSTO",{"$nulls":4},{"$f":"IFERROR(Položky[[#This Row],[MNOŽSTVÍ]]*Položky[[#This Row],[JEDN. CENA]], \"\")","v":{"v":0,"d":"0.00 Kč"}}]
[null,"Do této buňky zadejte PSČ a město zákazníka.",{"$nulls":4},{"$f":"IFERROR(Položky[[#This Row],[MNOŽSTVÍ]]*Položky[[#This Row],[JEDN. CENA]], \"\")","v":{"v":0,"d":"0.00 Kč"}}]
[null,"TELEFON",{"$nulls":4},{"$f":"IFERROR(Položky[[#This Row],[MNOŽSTVÍ]]*Položky[[#This Row],[JEDN. CENA]], \"\")","v":{"v":0,"d":"0.00 Kč"}}]
[null,"Do této buňky zadejte telefonní číslo zákazníka.",{"$nulls":4},{"$f":"IFERROR(Položky[[#This Row],[MNOŽSTVÍ]]*Položky[[#This Row],[JEDN. CENA]], \"\")","v":{"v":0,"d":"0.00 Kč"}}]
[null,"E-MAIL",{"$nulls":4},{"$f":"IFERROR(Položky[[#This Row],[MNOŽSTVÍ]]*Položky[[#This Row],[JEDN. CENA]], \"\")","v":{"v":0,"d":"0.00 Kč"}}]
[null,"Do této buňky zadejte e-mailovou adresu zákazníka.",{"$nulls":4},{"$f":"IFERROR(Položky[[#This Row],[MNOŽSTVÍ]]*Položky[[#This Row],[JEDN. CENA]], \"\")","v":{"v":0,"d":"0.00 Kč"}}]
[null,"PRODEJCE",{"$nulls":4},{"$f":"IFERROR(Položky[[#This Row],[MNOŽSTVÍ]]*Položky[[#This Row],[JEDN. CENA]], \"\")","v":{"v":0,"d":"0.00 Kč"}}]
[null,"Do této buňky zadejte jméno prodejce.",{"$nulls":4},{"$f":"IFERROR(Položky[[#This Row],[MNOŽSTVÍ]]*Položky[[#This Row],[JEDN. CENA]], \"\")","v":{"v":0,"d":"0.00 Kč"}}]
[null,"PROJEKT",{"$nulls":4},{"$f":"IFERROR(Položky[[#This Row],[MNOŽSTVÍ]]*Položky[[#This Row],[JEDN. CENA]], \"\")","v":{"v":0,"d":"0.00 Kč"}}]
[null,"Do této buňky zadejte název projektu.",{"$nulls":4},{"$f":"IFERROR(Položky[[#This Row],[MNOŽSTVÍ]]*Položky[[#This Row],[JEDN. CENA]], \"\")","v":{"v":0,"d":"0.00 Kč"}}]
[null,"PŘIPRAVIL(A):",{"$nulls":4},{"$f":"IFERROR(Položky[[#This Row],[MNOŽSTVÍ]]*Položky[[#This Row],[JEDN. CENA]], \"\")","v":{"v":0,"d":"0.00 Kč"}}]
[null,"Do této buňky zadejte, kdo kalkulaci připravil.",{"$nulls":4},{"$f":"IFERROR(Položky[[#This Row],[MNOŽSTVÍ]]*Položky[[#This Row],[JEDN. CENA]], \"\")","v":{"v":0,"d":"0.00 Kč"}}]
[null,"K RUKÁM",{"$nulls":4},{"$f":"IFERROR(Položky[[#This Row],[MNOŽSTVÍ]]*Položky[[#This Row],[JEDN. CENA]], \"\")","v":{"v":0,"d":"0.00 Kč"}}]
[null,"Do této buňky zadejte, pro koho je kalkulace určená.",{"$nulls":4},{"$f":"IFERROR(Položky[[#This Row],[MNOŽSTVÍ]]*Položky[[#This Row],[JEDN. CENA]], \"\")","v":{"v":0,"d":"0.00 Kč"}}]
[null,"PLATEBNÍ PODMÍNKY",{"$nulls":4},{"$f":"IFERROR(Položky[[#This Row],[MNOŽSTVÍ]]*Položky[[#This Row],[JEDN. CENA]], \"\")","v":{"v":0,"d":"0.00 Kč"}}]
[null,"Do 30 dnů",{"$nulls":4},{"$f":"IFERROR(Položky[[#This Row],[MNOŽSTVÍ]]*Položky[[#This Row],[JEDN. CENA]], \"\")","v":{"v":0,"d":"0.00 Kč"}}]
[null,"DATUM SPLATNOSTI",{"$nulls":4},{"$f":"IFERROR(Položky[[#This Row],[MNOŽSTVÍ]]*Položky[[#This Row],[JEDN. CENA]], \"\")","v":{"v":0,"d":"0.00 Kč"}}]
[null,{"$f":"TODAY()+30","v":"2018-12-14"},{"$nulls":4},{"$f":"IFERROR(Položky[[#This Row],[MNOŽSTVÍ]]*Položky[[#This Row],[JEDN. CENA]], \"\")","v":{"v":0,"d":"0.00 Kč"}}]
[{"$nulls":5},"MEZISOUČET",{"$f":"SUBTOTAL(109,Položky[ČÁSTKA])","v":{"v":3189.5,"d":"3,189.50 Kč"}}]
[{"$nulls":3},"KALKULACE VYCHÁZÍ Z TĚCHTO PODMÍNEK:",null,"SAZBA DANĚ ",{"v":0.0775,"d":"7.75%"}]
[{"$nulls":3},"Sem zadejte podmínky.",null,"DPH ",{"$f":"IFERROR(Mezisoučet*SazbaDaně, \"\")","v":{"v":247.18625,"d":"247.19 Kč"}}]
[{"$nulls":5},"JINÉ "]
[{"$nulls":5},"CELKEM ",{"$f":"IFERROR(Mezisoučet+G33+Jiné, \"\")","v":{"v":3436.68625,"d":"3,436.69 Kč"}}]
[]
[{"$nulls":3},"Přijetí nabídky prosím potvrďte podpisem níže:"]
[]
[{"$nulls":3},"Oprávněný zástupce",null,null,"Datum"]